[Event "Rapid del Mercoledì"]
[Site "Chess.com"]
[Date "2020.05.27"]
[Round "2"]
[White "Mrtre7"]
[Black "caramante"]
[Result "1-0"]
[WhiteElo "1449"]
[BlackElo "1564"]
[TimeControl "720+3"]
[EndTime "12:44:16 PDT"]
[Termination "Mrtre7 ha vinto per abbandono"]

1. d4 {[%clk 0:12:02.9]} 1... Nf6 {[%clk 0:12:00.6]} 2. c4 {[%clk 0:12:03.8]}
2... g6 {[%clk 0:12:02.5]} 3. Nc3 {[%clk 0:12:04.1]} 3... Bg7 {[%clk 0:12:04.4]}
4. e4 {[%clk 0:12:05.2]} 4... d6 {[%clk 0:12:06.1]} 5. Nf3 {[%clk 0:12:06.3]}
5... O-O {[%clk 0:12:07]} 6. Be2 {[%clk 0:12:08.1]} 6... c6 {[%clk 0:12:09]} 7.
O-O {[%clk 0:12:08.3]} 7... Bg4 {[%clk 0:12:07.9]} 8. h3 {[%clk 0:12:03.8]} 8...
Bxf3 {[%clk 0:12:09.1]} 9. Bxf3 {[%clk 0:12:05.4]} 9... Nbd7 {[%clk 0:12:11.2]}
10. Re1 {[%clk 0:12:01.1]} 10... e5 {[%clk 0:12:13.1]} 11. d5 {[%clk 0:11:59.3]}
11... cxd5 {[%clk 0:12:12.5]} 12. cxd5 {[%clk 0:12:01.2]} 12... a6 {[%clk
0:12:13.5]} 13. b4 {[%clk 0:12:00.8]} 13... Rc8 {[%clk 0:12:13]} 14. Qd3 {[%clk
0:11:36.9]} 14... Nb6 {[%clk 0:12:07.9]} 15. b5 {[%clk 0:09:29.6]} 15... Nc4
{[%clk 0:11:53.1]} 16. bxa6 {[%clk 0:09:13]} 16... bxa6 {[%clk 0:11:53.3]} 17.
Rb1 {[%clk 0:09:11.1]} 17... Qa5 {[%clk 0:11:23.8]} 18. Be3 {[%clk 0:06:40.9]}
18... Nxe3 {[%clk 0:11:19.6]} 19. Rxe3 {[%clk 0:06:41.8]} 19... Bh6 {[%clk
0:11:19.9]} 20. Rc1 {[%clk 0:05:40.2]} 20... Bxe3 {[%clk 0:11:14.6]} 21. Qxe3
{[%clk 0:05:42.3]} 21... Rc7 {[%clk 0:10:54.8]} 22. Ne2 {[%clk 0:05:01.5]} 22...
Rfc8 {[%clk 0:10:49.4]} 23. Rxc7 {[%clk 0:04:56.4]} 23... Rxc7 {[%clk
0:10:42.5]} 24. h4 {[%clk 0:04:58.6]} 24... Qxa2 {[%clk 0:10:24.1]} 25. h5
{[%clk 0:04:42.9]} 25... Qb1+ {[%clk 0:09:58]} 26. Kh2 {[%clk 0:04:37.4]} 26...
Qb8 {[%clk 0:08:06.3]} 27. hxg6 {[%clk 0:04:10.1]} 27... fxg6 {[%clk 0:08:01.4]}
28. Qg5 {[%clk 0:04:04.2]} 28... Qf8 {[%clk 0:07:57.7]} 29. Ng3 {[%clk
0:03:48.2]} 29... Kh8 {[%clk 0:07:52.5]} 30. Be2 {[%clk 0:02:11.1]} 30... a5
{[%clk 0:07:49.8]} 31. f4 {[%clk 0:02:13]} 31... exf4 {[%clk 0:07:45]} 32. Qxf4
{[%clk 0:02:15.1]} 32... Rf7 {[%clk 0:07:42.5]} 33. Qd2 {[%clk 0:02:00]} 33...
a4 {[%clk 0:07:32.9]} 34. Qb4 {[%clk 0:01:58.7]} 34... Qe7 {[%clk 0:07:13.2]}
35. Qxa4 {[%clk 0:01:58.5]} 35... Kg7 {[%clk 0:07:10.7]} 36. Qd4 {[%clk
0:01:58]} 36... Qe5 {[%clk 0:07:11]} 37. Qxe5 {[%clk 0:01:32.1]} 37... dxe5
{[%clk 0:07:09.5]} 38. Bc4 {[%clk 0:01:33.8]} 38... h5 {[%clk 0:07:02.5]} 39.
Kh3 {[%clk 0:01:31.3]} 39... Rc7 {[%clk 0:06:56.4]} 40. Bd3 {[%clk 0:01:33]}
40... Rc3 {[%clk 0:06:56.3]} 41. Bb1 {[%clk 0:01:27.6]} 41... g5 {[%clk
0:06:29]} 42. Kh2 {[%clk 0:01:03.5]} 42... Ng4+ {[%clk 0:06:19.2]} 43. Kh3
{[%clk 0:01:02.9]} 43... Kg6 {[%clk 0:06:07.9]} 44. d6 {[%clk 0:00:57.8]} 44...
Nf2+ {[%clk 0:05:42.4]} 45. Kh2 {[%clk 0:00:59.4]} 45... Rc6 {[%clk 0:05:36]}
46. Nf5 {[%clk 0:00:52.2]} 46... Kf6 {[%clk 0:05:28.2]} 47. Kg3 {[%clk
0:00:52.9]} 47... Nd1 {[%clk 0:05:27.8]} 48. Ba2 {[%clk 0:00:50.3]} 48... Rc3+
{[%clk 0:05:20.7]} 49. Kh2 {[%clk 0:00:50.9]} 49... Rd3 {[%clk 0:05:18.9]} 50.
Bd5 {[%clk 0:00:52.2]} 50... Nc3 {[%clk 0:04:56.9]} 51. d7 {[%clk 0:00:52.2]}
51... Rxd5 {[%clk 0:04:45.2]} 52. exd5 {[%clk 0:00:53]} 52... Kxf5 {[%clk
0:04:46.3]} 53. d8=Q {[%clk 0:00:54.1]} 53... Kg4 {[%clk 0:04:46.5]} 54. Qd7+
{[%clk 0:00:53.8]} 54... Kf4 {[%clk 0:04:46.4]} 55. Qf7+ {[%clk 0:00:55.5]}
55... Ke4 {[%clk 0:04:47.1]} 56. d6 {[%clk 0:00:55]} 56... h4 {[%clk 0:04:46.7]}
57. d7 {[%clk 0:00:56.6]} 1-0

[Event "Rapid del Mercoledì"]
[Site "Chess.com"]
[Date "2020.05.27"]
[Round "3"]
[White "caramante"]
[Black "sirmale49"]
[Result "1-0"]
[WhiteElo "1571"]
[BlackElo "1370"]
[TimeControl "720+3"]
[EndTime "12:56:17 PDT"]
[Termination "caramante ha vinto per abbandono"]

1. e4 {[%clk 0:12:02.9]} 1... d5 {[%clk 0:11:59.1]} 2. exd5 {[%clk 0:11:59.5]}
2... Qxd5 {[%clk 0:12:00.7]} 3. d4 {[%clk 0:12:00.6]} 3... c6 {[%clk 0:12:01.5]}
4. Nf3 {[%clk 0:12:01.9]} 4... Bg4 {[%clk 0:12:01.4]} 5. Be2 {[%clk 0:12:02.1]}
5... Nf6 {[%clk 0:12:01.7]} 6. c3 {[%clk 0:12:03.6]} 6... e6 {[%clk 0:11:58.1]}
7. O-O {[%clk 0:12:04.3]} 7... Nbd7 {[%clk 0:11:51.7]} 8. Re1 {[%clk 0:12:04.4]}
8... Nb6 {[%clk 0:11:46.8]} 9. b3 {[%clk 0:12:04.1]} 9... Bd6 {[%clk 0:11:42.2]}
10. c4 {[%clk 0:12:02.1]} 10... Qh5 {[%clk 0:11:20.8]} 11. c5 {[%clk 0:11:48.3]}
11... Bc7 {[%clk 0:11:13.2]} 12. cxb6 {[%clk 0:11:45.6]} 12... axb6 {[%clk
0:11:15.2]} 13. Ne5 {[%clk 0:11:40.7]} 13... Bxe2 {[%clk 0:11:05.1]} 14. Qxe2
{[%clk 0:11:41.2]} 14... Qf5 {[%clk 0:09:43.5]} 15. Qf3 {[%clk 0:10:46.7]} 15...
Qxf3 {[%clk 0:08:55.2]} 16. Nxf3 {[%clk 0:10:45.6]} 16... O-O-O {[%clk
0:08:49.9]} 17. Bb2 {[%clk 0:10:43.5]} 17... Nd5 {[%clk 0:08:46.7]} 18. Nc3
{[%clk 0:10:39.4]} 18... Rhe8 {[%clk 0:08:36.4]} 19. Nxd5 {[%clk 0:08:39.3]}
19... cxd5 {[%clk 0:08:29.1]} 20. Rac1 {[%clk 0:08:35.8]} 20... Kb8 {[%clk
0:08:29.8]} 21. Rc2 {[%clk 0:08:26.7]} 21... Bf4 {[%clk 0:08:27.5]} 22. g3
{[%clk 0:08:26.3]} 22... Bh6 {[%clk 0:08:13.2]} 23. Ne5 {[%clk 0:08:17.1]} 23...
Re7 {[%clk 0:07:53.7]} 24. Ba3 {[%clk 0:08:13.5]} 24... Rc7 {[%clk 0:07:23.8]}
25. Rxc7 {[%clk 0:08:08.6]} 25... Kxc7 {[%clk 0:07:23.2]} 26. Nxf7 {[%clk
0:08:08.8]} 26... Rd7 {[%clk 0:07:23.2]} 27. Nxh6 {[%clk 0:08:08.6]} 27... gxh6
{[%clk 0:07:24.2]} 28. Rxe6 {[%clk 0:08:05.7]} 1-0

[Event "Rapid del Mercoledì"]
[Site "Chess.com"]
[Date "2020.05.27"]
[Round "3"]
[White "SanSecondoPR"]
[Black "fausto2p"]
[Result "1-0"]
[WhiteElo "1309"]
[BlackElo "1176"]
[TimeControl "720+3"]
[EndTime "13:00:07 PDT"]
[Termination "SanSecondoPR ha vinto per abbandono"]

1. e4 {[%clk 0:12:02.9]} 1... e6 {[%clk 0:11:59.5]} 2. d4 {[%clk 0:11:59]} 2...
d5 {[%clk 0:12:00.7]} 3. e5 {[%clk 0:11:57.1]} 3... c5 {[%clk 0:12:01.7]} 4. c3
{[%clk 0:11:58.8]} 4... Nc6 {[%clk 0:12:01.8]} 5. Nf3 {[%clk 0:12:00.4]} 5...
cxd4 {[%clk 0:11:53.4]} 6. cxd4 {[%clk 0:12:00.3]} 6... Nge7 {[%clk 0:11:46.3]}
7. a3 {[%clk 0:11:58.7]} 7... Nf5 {[%clk 0:11:43.4]} 8. b4 {[%clk 0:11:59.2]}
8... Qb6 {[%clk 0:11:39.3]} 9. Bb2 {[%clk 0:11:59.1]} 9... a5 {[%clk 0:10:58.8]}
10. b5 {[%clk 0:11:57.2]} 10... Na7 {[%clk 0:10:51.8]} 11. Nc3 {[%clk
0:11:46.5]} 11... Bd7 {[%clk 0:10:44.8]} 12. Be2 {[%clk 0:11:30.5]} 12... Bxb5
{[%clk 0:10:21.2]} 13. O-O {[%clk 0:11:25.5]} 13... Bxe2 {[%clk 0:10:19.2]} 14.
Nxe2 {[%clk 0:11:19.8]} 14... Be7 {[%clk 0:09:39.8]} 15. g4 {[%clk 0:11:01.9]}
15... Nh6 {[%clk 0:09:08.1]} 16. h3 {[%clk 0:10:42.7]} 16... O-O {[%clk
0:09:04]} 17. Kh2 {[%clk 0:10:26.5]} 17... f6 {[%clk 0:08:17.7]} 18. Ng3 {[%clk
0:10:01.3]} 18... fxe5 {[%clk 0:08:08]} 19. Nxe5 {[%clk 0:09:52.3]} 19... Rad8
{[%clk 0:07:18.1]} 20. Bc1 {[%clk 0:09:29.6]} 20... Nf7 {[%clk 0:06:53.4]} 21.
Bf4 {[%clk 0:08:28.6]} 21... Nc6 {[%clk 0:06:39.6]} 22. Rb1 {[%clk 0:08:20.9]}
22... Qa7 {[%clk 0:06:32.5]} 23. Nxc6 {[%clk 0:07:51.3]} 23... bxc6 {[%clk
0:06:27.9]} 24. Rb3 {[%clk 0:06:52.2]} 24... Rb8 {[%clk 0:06:15]} 25. Bxb8
{[%clk 0:06:48.3]} 25... Rxb8 {[%clk 0:06:11.6]} 26. Rxb8+ {[%clk 0:06:47.5]}
26... Qxb8 {[%clk 0:06:11.6]} 27. Qa4 {[%clk 0:06:41.8]} 27... Qa7 {[%clk
0:05:35.5]} 28. Qxc6 {[%clk 0:06:33.9]} 28... Qxd4 {[%clk 0:05:34.9]} 29. Qe8+
{[%clk 0:06:25.2]} 29... Bf8 {[%clk 0:05:35.2]} 30. Qxe6 {[%clk 0:06:23.3]}
30... Kh8 {[%clk 0:05:30.2]} 31. Qxf7 {[%clk 0:06:20.3]} 1-0

[Event "Rapid del Mercoledì"]
[Site "Chess.com"]
[Date "2020.05.27"]
[Round "3"]
[White "pedrak"]
[Black "mr6701"]
[Result "0-1"]
[WhiteElo "1684"]
[BlackElo "1789"]
[TimeControl "720+3"]
[EndTime "13:00:22 PDT"]
[Termination "mr6701 ha vinto per abbandono"]

1. d4 {[%clk 0:11:59.5]} 1... d5 {[%clk 0:12:01.4]} 2. Nf3 {[%clk 0:12:00.1]}
2... e6 {[%clk 0:12:03.4]} 3. e3 {[%clk 0:11:56.7]} 3... Nf6 {[%clk 0:12:05.4]}
4. Bd3 {[%clk 0:11:57.2]} 4... Be7 {[%clk 0:12:07.3]} 5. O-O {[%clk 0:11:58.2]}
5... O-O {[%clk 0:12:09.3]} 6. Nbd2 {[%clk 0:11:59.4]} 6... c5 {[%clk
0:12:11.4]} 7. c3 {[%clk 0:12:00.8]} 7... Nc6 {[%clk 0:12:12.9]} 8. Qe2 {[%clk
0:12:02.3]} 8... a6 {[%clk 0:12:14]} 9. a3 {[%clk 0:11:56.3]} 9... b5 {[%clk
0:12:15]} 10. dxc5 {[%clk 0:11:57.3]} 10... Bxc5 {[%clk 0:12:16.4]} 11. e4
{[%clk 0:11:58.7]} 11... Bb7 {[%clk 0:11:55.7]} 12. e5 {[%clk 0:11:44.6]} 12...
Ng4 {[%clk 0:11:13.4]} 13. h3 {[%clk 0:11:42.9]} 13... Nh6 {[%clk 0:11:14]} 14.
Re1 {[%clk 0:11:38.8]} 14... Qb6 {[%clk 0:11:07.4]} 15. Nb3 {[%clk 0:11:31.8]}
15... Nf5 {[%clk 0:11:07.7]} 16. Nxc5 {[%clk 0:11:31.6]} 16... Qxc5 {[%clk
0:11:08.5]} 17. Bd2 {[%clk 0:11:14.4]} 17... d4 {[%clk 0:11:06.9]} 18. Rac1
{[%clk 0:10:54.8]} 18... Qb6 {[%clk 0:10:52.9]} 19. g4 {[%clk 0:09:41]} 19...
Nfe7 {[%clk 0:10:42.3]} 20. Ng5 {[%clk 0:09:26.3]} 20... Ng6 {[%clk 0:10:10.1]}
21. Nf3 {[%clk 0:08:34.6]} 21... Rad8 {[%clk 0:09:54.3]} 22. c4 {[%clk
0:08:15.1]} 22... bxc4 {[%clk 0:09:48.1]} 23. Rxc4 {[%clk 0:08:00.4]} 23... Na5
{[%clk 0:09:40.7]} 24. Bxa5 {[%clk 0:07:57.9]} 24... Qxa5 {[%clk 0:09:34.2]} 25.
h4 {[%clk 0:06:52.1]} 25... Nf4 {[%clk 0:09:28.1]} 26. Qd1 {[%clk 0:06:52]}
26... Nxd3 {[%clk 0:09:23.6]} 27. Qxd3 {[%clk 0:06:53]} 27... Qd5 {[%clk
0:09:24.4]} 28. Kg2 {[%clk 0:06:24.6]} 28... f6 {[%clk 0:09:12.1]} 29. Kg3
{[%clk 0:05:59.6]} 29... fxe5 {[%clk 0:09:09.4]} 0-1

[Event "Rapid del Mercoledì"]
[Site "Chess.com"]
[Date "2020.05.27"]
[Round "3"]
[White "malberici"]
[Black "Mrtre7"]
[Result "0-1"]
[WhiteElo "1433"]
[BlackElo "1458"]
[TimeControl "720+3"]
[EndTime "13:01:22 PDT"]
[Termination "Mrtre7 ha vinto per abbandono"]

1. d4 {[%clk 0:12:02.9]} 1... d5 {[%clk 0:11:55.2]} 2. c4 {[%clk 0:12:03.3]}
2... c6 {[%clk 0:11:53.3]} 3. Nf3 {[%clk 0:12:01.9]} 3... e6 {[%clk 0:11:51]} 4.
cxd5 {[%clk 0:12:01]} 4... exd5 {[%clk 0:11:49.5]} 5. e3 {[%clk 0:11:56.5]} 5...
Nf6 {[%clk 0:11:48.2]} 6. Nc3 {[%clk 0:11:55.5]} 6... Bg4 {[%clk 0:11:13.3]} 7.
h3 {[%clk 0:11:56.6]} 7... Bh5 {[%clk 0:11:14.7]} 8. Be2 {[%clk 0:11:44.7]} 8...
c5 {[%clk 0:11:12.3]} 9. dxc5 {[%clk 0:11:34.5]} 9... Bxc5 {[%clk 0:11:11.8]}
10. O-O {[%clk 0:11:33.3]} 10... O-O {[%clk 0:11:10.4]} 11. a3 {[%clk
0:11:34.1]} 11... Nc6 {[%clk 0:11:11]} 12. b4 {[%clk 0:11:31.2]} 12... Bb6
{[%clk 0:11:10.8]} 13. Bb2 {[%clk 0:11:31]} 13... d4 {[%clk 0:11:00.1]} 14. exd4
{[%clk 0:11:22.2]} 14... Bxf3 {[%clk 0:10:58.9]} 15. Bxf3 {[%clk 0:11:19.5]}
15... Bxd4 {[%clk 0:08:54.1]} 16. Rb1 {[%clk 0:10:43.2]} 16... Rc8 {[%clk
0:08:46.3]} 17. Na4 {[%clk 0:10:09]} 17... Bxb2 {[%clk 0:08:19.9]} 18. Rxb2
{[%clk 0:09:58.1]} 18... Re8 {[%clk 0:07:59.7]} 19. Rd2 {[%clk 0:09:39]} 19...
Qc7 {[%clk 0:07:42.8]} 20. Bxc6 {[%clk 0:09:27.6]} 20... Qxc6 {[%clk 0:07:36.5]}
21. Nc5 {[%clk 0:09:25.3]} 21... Rc7 {[%clk 0:06:24.2]} 22. Rd6 {[%clk
0:08:42.6]} 22... Qb5 {[%clk 0:06:06.6]} 23. Qd4 {[%clk 0:08:02.1]} 23... Rce7
{[%clk 0:05:20.8]} 24. a4 {[%clk 0:07:51.1]} 24... Qxf1+ {[%clk 0:05:05.2]} 25.
Kh2 {[%clk 0:07:47.4]} 25... Qe2 {[%clk 0:04:31]} 26. Qh4 {[%clk 0:07:21.8]}
26... Qe5+ {[%clk 0:04:30.2]} 27. Qg3 {[%clk 0:06:50.9]} 27... Qxg3+ {[%clk
0:03:50.4]} 28. fxg3 {[%clk 0:06:50.6]} 28... h6 {[%clk 0:03:38.6]} 0-1

[Event "Rapid del Mercoledì"]
[Site "Chess.com"]
[Date "2020.05.27"]
[Round "3"]
[White "sergiodone"]
[Black "Carbon"]
[Result "0-1"]
[WhiteElo "1437"]
[BlackElo "1765"]
[TimeControl "720+3"]
[EndTime "13:13:12 PDT"]
[Termination "Carbon ha vinto per tempo"]

1. e4 {[%clk 0:11:54.2]} 1... c5 {[%clk 0:11:59.5]} 2. Nf3 {[%clk 0:11:53.8]}
2... Nc6 {[%clk 0:12:01.2]} 3. d4 {[%clk 0:11:54.1]} 3... cxd4 {[%clk
0:12:03.1]} 4. Nxd4 {[%clk 0:11:54.5]} 4... g6 {[%clk 0:12:02.3]} 5. Be3 {[%clk
0:11:54.8]} 5... Bg7 {[%clk 0:12:04]} 6. c3 {[%clk 0:11:56.2]} 6... Nf6 {[%clk
0:12:01.2]} 7. f3 {[%clk 0:11:58.1]} 7... O-O {[%clk 0:11:54.2]} 8. Be2 {[%clk
0:11:50.4]} 8... d5 {[%clk 0:11:54]} 9. O-O {[%clk 0:11:42.2]} 9... dxe4 {[%clk
0:11:49.7]} 10. Nd2 {[%clk 0:11:14]} 10... exf3 {[%clk 0:11:16.3]} 11. N2xf3
{[%clk 0:11:14.5]} 11... Qb6 {[%clk 0:10:55.5]} 12. Qc1 {[%clk 0:10:58]} 12...
Qa5 {[%clk 0:09:46.7]} 13. Nxc6 {[%clk 0:10:40.9]} 13... bxc6 {[%clk 0:09:48.6]}
14. Bd3 {[%clk 0:10:28]} 14... Ba6 {[%clk 0:09:34.7]} 15. Qc2 {[%clk 0:09:54.3]}
15... Bxd3 {[%clk 0:09:31.2]} 16. Qxd3 {[%clk 0:09:55.2]} 16... Rad8 {[%clk
0:09:22.8]} 17. Qc2 {[%clk 0:09:53.3]} 17... Nd5 {[%clk 0:09:20.8]} 18. Bf2
{[%clk 0:09:22.9]} 18... Qc7 {[%clk 0:09:09.9]} 19. Rae1 {[%clk 0:09:01.9]}
19... e5 {[%clk 0:09:11.2]} 20. Bg3 {[%clk 0:08:51]} 20... Nf4 {[%clk 0:08:52]}
21. Bxf4 {[%clk 0:07:41.3]} 21... exf4 {[%clk 0:08:51.6]} 22. Re4 {[%clk
0:07:29.6]} 22... Rfe8 {[%clk 0:08:22.5]} 23. Rfe1 {[%clk 0:07:30.1]} 23... Rxe4
{[%clk 0:08:20.8]} 24. Qxe4 {[%clk 0:07:29]} 24... Qb6+ {[%clk 0:08:09.7]} 25.
Kh1 {[%clk 0:07:29.8]} 25... Qxb2 {[%clk 0:08:06.5]} 26. Qxc6 {[%clk 0:05:57.3]}
26... Qxc3 {[%clk 0:07:31.1]} 27. Qe4 {[%clk 0:05:41.3]} 27... Qf6 {[%clk
0:07:15.7]} 28. h3 {[%clk 0:05:23.1]} 28... h5 {[%clk 0:06:57.2]} 29. a4 {[%clk
0:05:14]} 29... Bf8 {[%clk 0:06:23.2]} 30. Rf1 {[%clk 0:04:07.8]} 30... Bc5
{[%clk 0:06:02.6]} 31. a5 {[%clk 0:03:56.5]} 31... Be3 {[%clk 0:05:37.1]} 32. a6
{[%clk 0:03:56.3]} 32... Qxa6 {[%clk 0:05:24.1]} 33. Rb1 {[%clk 0:03:05.4]}
33... Qe2 {[%clk 0:04:06.1]} 34. Re1 {[%clk 0:01:25.6]} 34... Qd3 {[%clk
0:03:32.2]} 35. Qb7 {[%clk 0:01:17.4]} 35... Qd7 {[%clk 0:03:25.2]} 36. Qb1
{[%clk 0:01:09.3]} 36... a5 {[%clk 0:03:14.7]} 37. Ne5 {[%clk 0:01:10.8]} 37...
Qe6 {[%clk 0:02:57.1]} 38. Nf3 {[%clk 0:01:04.9]} 38... a4 {[%clk 0:02:26.9]}
39. Ng5 {[%clk 0:01:06.3]} 39... Qf5 {[%clk 0:02:09.3]} 40. Ne4 {[%clk
0:01:04.5]} 40... Re8 {[%clk 0:01:36.9]} 41. Nd6 {[%clk 0:00:47.3]} 41... Qxb1
{[%clk 0:01:37.8]} 42. Rxb1 {[%clk 0:00:48.2]} 42... Rd8 {[%clk 0:01:37.7]} 43.
Ne4 {[%clk 0:00:45.4]} 43... Kg7 {[%clk 0:01:35.7]} 44. h4 {[%clk 0:00:39.7]}
44... a3 {[%clk 0:01:34.4]} 45. Kh2 {[%clk 0:00:33.7]} 45... a2 {[%clk
0:01:30.9]} 46. Ra1 {[%clk 0:00:33.7]} 46... Ra8 {[%clk 0:01:30.1]} 47. Nc3
{[%clk 0:00:32.6]} 47... Rc8 {[%clk 0:01:10.4]} 48. Nd5 {[%clk 0:00:25.2]} 48...
Rc2 {[%clk 0:01:04.8]} 49. Nb4 {[%clk 0:00:22.9]} 49... Rc4 {[%clk 0:01:01.5]}
50. Nxa2 {[%clk 0:00:23.3]} 50... Ra4 {[%clk 0:01:02.8]} 51. g3 {[%clk
0:00:15.2]} 51... Bd4 {[%clk 0:01:00.4]} 52. Rd1 {[%clk 0:00:14.3]} 52... Rxa2+
{[%clk 0:01:01.4]} 0-1

[Event "Rapid del Mercoledì"]
[Site "Chess.com"]
[Date "2020.05.27"]
[Round "4"]
[White "SanSecondoPR"]
[Black "malberici"]
[Result "1-0"]
[WhiteElo "1320"]
[BlackElo "1410"]
[TimeControl "720+3"]
[EndTime "13:26:21 PDT"]
[Termination "SanSecondoPR ha vinto per abbandono"]

1. e4 {[%clk 0:12:02.9]} 1... Nf6 {[%clk 0:12:00.8]} 2. Nc3 {[%clk 0:12:01.3]}
2... e5 {[%clk 0:12:01.3]} 3. Nf3 {[%clk 0:11:58.2]} 3... Nc6 {[%clk 0:11:59.3]}
4. d4 {[%clk 0:11:53]} 4... exd4 {[%clk 0:11:55.2]} 5. Nxd4 {[%clk 0:11:51.7]}
5... Bb4 {[%clk 0:11:48.6]} 6. Qd3 {[%clk 0:11:17.9]} 6... O-O {[%clk
0:11:46.1]} 7. Bg5 {[%clk 0:11:15.1]} 7... Bxc3+ {[%clk 0:11:41.2]} 8. bxc3
{[%clk 0:11:11.5]} 8... h6 {[%clk 0:11:37.2]} 9. Bh4 {[%clk 0:11:10]} 9... g5
{[%clk 0:11:37.1]} 10. Bg3 {[%clk 0:11:10.5]} 10... Nxe4 {[%clk 0:11:36.4]} 11.
Be2 {[%clk 0:11:04.6]} 11... d5 {[%clk 0:11:36.8]} 12. O-O {[%clk 0:11:00.6]}
12... Bf5 {[%clk 0:11:23.9]} 13. f3 {[%clk 0:10:52.6]} 13... Nxg3 {[%clk
0:11:22]} 14. Qd1 {[%clk 0:10:34.6]} 14... Nxe2+ {[%clk 0:11:21.9]} 15. Qxe2
{[%clk 0:10:25.7]} 15... Nxd4 {[%clk 0:11:21.8]} 16. cxd4 {[%clk 0:10:25.7]}
16... Qf6 {[%clk 0:11:21.3]} 17. c3 {[%clk 0:10:22.7]} 17... Qg6 {[%clk
0:10:57.3]} 18. Qe5 {[%clk 0:10:10.9]} 18... c6 {[%clk 0:10:45.5]} 19. f4 {[%clk
0:10:08.9]} 19... Rfe8 {[%clk 0:10:37.8]} 20. Qc7 {[%clk 0:10:02.7]} 20... Qe6
{[%clk 0:10:20.3]} 21. Qxb7 {[%clk 0:09:46.8]} 21... Qe3+ {[%clk 0:10:18]} 22.
Kh1 {[%clk 0:09:42.3]} 22... Qxc3 {[%clk 0:10:12.2]} 23. Rac1 {[%clk 0:09:33.7]}
23... Qxd4 {[%clk 0:10:00]} 24. fxg5 {[%clk 0:09:28.1]} 24... hxg5 {[%clk
0:09:50.8]} 25. Rxf5 {[%clk 0:09:16.4]} 25... Qg7 {[%clk 0:09:10]} 26. Rcf1
{[%clk 0:09:06.9]} 26... Rab8 {[%clk 0:08:46.5]} 27. Qxc6 {[%clk 0:08:39.1]}
27... Qh7 {[%clk 0:08:32.2]} 28. Rxg5+ {[%clk 0:08:24.7]} 28... Kf8 {[%clk
0:08:26.4]} 29. Qd6+ {[%clk 0:08:15]} 29... Re7 {[%clk 0:07:54.3]} 30. Qxb8+
{[%clk 0:08:14.5]} 30... Re8 {[%clk 0:07:54]} 31. Qb4+ {[%clk 0:08:10]} 31...
Re7 {[%clk 0:07:53.6]} 32. Rxd5 {[%clk 0:07:58.3]} 32... Qc2 {[%clk 0:07:07.6]}
33. Rd8+ {[%clk 0:07:52.1]} 33... Kg7 {[%clk 0:07:05.4]} 34. Qxe7 {[%clk
0:07:47]} 1-0

[Event "Rapid del Mercoledì"]
[Site "Chess.com"]
[Date "2020.05.27"]
[Round "4"]
[White "sirmale49"]
[Black "sergiodone"]
[Result "1-0"]
[WhiteElo "1380"]
[BlackElo "1427"]
[TimeControl "720+3"]
[EndTime "13:28:13 PDT"]
[Termination "sirmale49 ha vinto per abbandono"]

1. f4 {[%clk 0:12:02.9]} 1... c5 {[%clk 0:11:57.3]} 2. Nf3 {[%clk 0:12:04.8]}
2... Nc6 {[%clk 0:11:55.2]} 3. g3 {[%clk 0:12:04.9]} 3... d6 {[%clk 0:11:56.9]}
4. Bg2 {[%clk 0:12:06.5]} 4... Bd7 {[%clk 0:11:58.3]} 5. O-O {[%clk 0:12:07.6]}
5... e6 {[%clk 0:12:00.3]} 6. d3 {[%clk 0:12:06.9]} 6... Be7 {[%clk 0:12:02.1]}
7. e4 {[%clk 0:12:06.4]} 7... h5 {[%clk 0:12:03.2]} 8. h4 {[%clk 0:11:58.8]}
8... Nf6 {[%clk 0:12:01.8]} 9. Bh3 {[%clk 0:11:52.2]} 9... Ng4 {[%clk 0:12:02]}
10. Ng5 {[%clk 0:11:37.9]} 10... Qb6 {[%clk 0:11:58.4]} 11. c4 {[%clk
0:11:33.3]} 11... Nd4 {[%clk 0:11:59]} 12. b3 {[%clk 0:11:02.3]} 12... f6 {[%clk
0:11:59.6]} 13. Nf3 {[%clk 0:10:46.3]} 13... e5 {[%clk 0:11:51.8]} 14. f5 {[%clk
0:10:38]} 14... Bc6 {[%clk 0:11:41.7]} 15. Nc3 {[%clk 0:10:38.3]} 15... a6
{[%clk 0:11:41.7]} 16. Nxd4 {[%clk 0:09:59.2]} 16... cxd4 {[%clk 0:11:38.3]} 17.
Nd5 {[%clk 0:09:53]} 17... Bxd5 {[%clk 0:11:39.1]} 18. exd5 {[%clk 0:09:48.5]}
18... Ne3 {[%clk 0:11:33.4]} 19. Bxe3 {[%clk 0:09:48.1]} 19... dxe3 {[%clk
0:11:32.4]} 20. Qe2 {[%clk 0:09:46.7]} 20... Qd4 {[%clk 0:11:32.8]} 21. Rae1
{[%clk 0:08:35.1]} 21... Bd8 {[%clk 0:11:24.3]} 22. Qxe3 {[%clk 0:08:33.1]}
22... Qxe3+ {[%clk 0:11:25.2]} 23. Rxe3 {[%clk 0:08:34.9]} 23... Bb6 {[%clk
0:11:26.7]} 24. Re1 {[%clk 0:08:26.6]} 24... Bxe3+ {[%clk 0:11:27.8]} 25. Rxe3
{[%clk 0:08:28.1]} 25... Kf7 {[%clk 0:11:29.5]} 26. Kg2 {[%clk 0:08:23.4]} 26...
b6 {[%clk 0:11:30.4]} 27. Kf3 {[%clk 0:08:24.9]} 27... Rac8 {[%clk 0:11:20.4]}
28. Re4 {[%clk 0:08:24.5]} 28... Rc7 {[%clk 0:11:18.2]} 29. g4 {[%clk 0:08:24]}
29... hxg4+ {[%clk 0:11:18.2]} 30. Rxg4 {[%clk 0:08:25.4]} 30... Rh6 {[%clk
0:11:10.2]} 31. Re4 {[%clk 0:08:20.2]} 31... Kf8 {[%clk 0:11:10.7]} 32. Kg4
{[%clk 0:08:14.6]} 32... a5 {[%clk 0:11:11.5]} 33. h5 {[%clk 0:08:10.5]} 33...
Rc5 {[%clk 0:10:55.8]} 34. d4 {[%clk 0:08:04.3]} 34... exd4 {[%clk 0:10:37.8]}
35. Rxd4 {[%clk 0:08:05.8]} 35... b5 {[%clk 0:10:36.8]} 36. Kh4 {[%clk
0:07:52.4]} 36... bxc4 {[%clk 0:10:37.6]} 37. bxc4 {[%clk 0:07:51.5]} 37... a4
{[%clk 0:10:37.9]} 38. Bf1 {[%clk 0:07:40.9]} 38... a3 {[%clk 0:10:36.7]} 39.
Bd3 {[%clk 0:07:31.8]} 39... Kf7 {[%clk 0:10:36.9]} 40. Bc2 {[%clk 0:07:24.2]}
40... Rh8 {[%clk 0:10:37.5]} 41. Bb3 {[%clk 0:07:23.6]} 41... Rb8 {[%clk
0:10:38.3]} 42. h6 {[%clk 0:07:13.1]} 42... gxh6 {[%clk 0:10:38.6]} 43. Kh5
{[%clk 0:07:13.8]} 43... Kg7 {[%clk 0:10:38.7]} 44. Rg4+ {[%clk 0:07:12.7]}
44... Kf7 {[%clk 0:10:28.7]} 45. Rg6 {[%clk 0:07:05.9]} 45... Rxb3 {[%clk
0:10:20]} 46. axb3 {[%clk 0:07:06.6]} 46... a2 {[%clk 0:10:21.8]} 47. Rg1 {[%clk
0:07:07.4]} 47... Ra5 {[%clk 0:10:20.1]} 48. Ra1 {[%clk 0:07:08.1]} 48... Ra3
{[%clk 0:10:21.6]} 49. b4 {[%clk 0:06:53.2]} 49... Rb3 {[%clk 0:10:20.8]} 50. b5
{[%clk 0:06:45]} 50... Rb2 {[%clk 0:10:10.6]} 51. b6 {[%clk 0:06:36.6]} 51...
Rxb6 {[%clk 0:10:09.8]} 52. Rxa2 {[%clk 0:06:38.3]} 52... Rb4 {[%clk 0:10:04.9]}
53. Rc2 {[%clk 0:06:37.3]} 53... Kg7 {[%clk 0:10:03.3]} 54. Rc3 {[%clk
0:06:29.6]} 54... Rb1 {[%clk 0:10:03]} 55. Rg3+ {[%clk 0:06:23.4]} 55... Kf7
{[%clk 0:09:58]} 56. Rg4 {[%clk 0:06:20.8]} 56... Rh1+ {[%clk 0:09:54.9]} 57.
Rh4 {[%clk 0:06:20.8]} 57... Rf1 {[%clk 0:09:48.3]} 58. Kg4 {[%clk 0:06:10.8]}
58... Rxf5 {[%clk 0:09:48.9]} 59. Kxf5 {[%clk 0:06:05.1]} 1-0